[Event "FIDE WTC Prel-B 2022"]
[Site "Jerusalem"]
[Date "2022.11.21"]
[Round "4.13"]
[White "Rodshtein, Maxim"]
[Black "Niemann, Hans Moke"]
[Result "1/2-1/2"]
[ECO "E11"]
[WhiteElo "2618"]
[BlackElo "2699"]
[Annotator "TA"]
[PlyCount "148"]
[EventDate "2022.11.20"]
[EventType "team-tourn"]
[EventCountry "ISR"]
[SourceTitle "playchess.com"]
[Source "ChessBase"]
[SourceQuality "1"]
[WhiteTeam "Israel"]
[BlackTeam "United States"]
[WhiteTeamCountry "ISR"]
[BlackTeamCountry "USA"]
[TimeControl "2700+10"]

{[%evp 19,148,25,31,17,12,30,46,34,57,55,21,31,23,17,27,25,35,29,38,40,72,40,114,116,116,111,117,104,108,122,159,123,122,112,172,176,172,164,169,186,183,149,156,160,156,159,168,87,86,97,133,49,49,49,49,49,49,49,49,49,49,49,49,43,80,80,80,80,74,22,62,62,62,62,62,0,0,0,62,62,91,91,91,91,91,91,91,80,80,0,91,0,91,91,91,17,91,0,91,91,91,91,91,44,44,44,44,44,95,8,8,0,134,134,134,134,134,134,134,134,134,134,134,134,134,134,134,134,134,134,134]} 1. d4 {[%emt 0:00:03]} Nf6 {[%emt 0:00:02]} 2. c4 {[%emt 0:00:03]} e6 {[%emt 0:00:02]} 3. Nf3 {[%emt 0:00:08]} d5 {[%emt 0:00:02]} 4. g3 {[%emt 0:00:09]} Bb4+ {[%emt 0:00:10]} 5. Bd2 {[%emt 0:00:05]} Be7 {[%emt 0:00:05]} 6. Bg2 {[%emt 0:00:06]} O-O {[%emt 0:00:03]} 7. O-O {[%emt 0:00:05]} Nbd7 {[%emt 0:00:03]} 8. Qc2 {[%emt 0:00:12]} c6 {[%emt 0:00:05]} 9. Bf4 {[%emt 0:00:32]} a5 {[%emt 0:01:05]} 10. Rd1 {[%emt 0:00:39]} Ne4 {[%emt 0:00:31]} 11. h4 {[%emt 0:07:12] E11: Bogo-Indian.} h6 {[%emt 0:00:14] [#]} 12. Nc3 $146 {[%emt 0:03:22]} ({Predecessor:} 12. Ne5 Nd6 13. Nd2 g5 14. hxg5 hxg5 15. Nxd7 Bxd7 16. Bxd6 Bxd6 17. e4 Rc8 18. Bf3 Kg7 {1-0 (57) Schitco,I (2467)-Svetushkin,D (2515) Chess.com INT 2020}) 12... g5 {[%emt 0:01:00] And now ...Nxc3 would win.} 13. Be3 {[%emt 0:00:53] White is slightly better.} (13. Nxe4 dxe4 14. Nxg5 hxg5 $17) 13... f5 {[%emt 0:00:09][%cal Rg5h4]} 14. hxg5 {[%emt 0:00:27]} hxg5 {[%emt 0:00:03]} 15. Qc1 {[%emt 0:04:44]} g4 {[%emt 0:00:06]} 16. Ne1 {[%emt 0:01:14][%cal Bf3e1,Be1d3,Bd3f4,Bf4g6][%mdl 32]} Nd6 {[%emt 0:03:06]} 17. b3 {[%emt 0:02:10]} Rf7 {[%emt 0:03:13]} 18. Nd3 {[%emt 0:00:36]} Rh7 {[%emt 0:00:09]} 19. Nf4 {[%emt 0:01:48]} Nf6 {[%emt 0:00:10]} 20. Ng6 {[%emt 0:00:43]} (20. c5 $5 {[%cal Rc5d6]} Nde4 21. Ng6 $14) 20... Nde4 {[%emt 0:00:35]} (20... Bd7 $14) 21. Bxe4 $16 {[%emt 0:01:01]} Nxe4 {[%emt 0:02:24]} 22. Nxe4 {[%emt 0:00:21]} fxe4 {[%emt 0:00:03]} 23. Kg2 {[%emt 0:01:23] Threatens to win with Rh1. White is more active.} Bf6 {[%emt 0:03:59]} 24. Rh1 {[%emt 0:00:28] aiming for Rxh7. Chess con chili.} Rh3 {[%emt 0:00:04]} 25. Ne5 {[%emt 0:05:26]} (25. Rxh3 $6 gxh3+ 26. Kh2 Qe8 $14) 25... Bxe5 {[%emt 0:00:11]} 26. dxe5 {[%emt 0:00:03] Bh6 is the strong threat.} Qe8 {[%emt 0:01:08]} (26... Qc7 $16) 27. Rxh3 $18 {[%emt 0:01:29]} gxh3+ {[%emt 0:00:04]} 28. Kh2 {[%emt 0:00:02]} Qh5 {[%emt 0:00:25]} 29. Qb2 {[%emt 0:02:57]} Qg4 {[%emt 0:00:08]} 30. Rf1 {[%emt 0:02:02]} Bd7 {[%emt 0:00:05]} 31. f3 {[%emt 0:00:24]} exf3 {[%emt 0:00:28]} 32. exf3 {[%emt 0:00:02]} Qf5 {[%emt 0:01:22]} 33. Qd4 {[%emt 0:00:45] Inhibits Qd3.} (33. Rf2 $18) 33... c5 $16 {[%emt 0:01:43]} 34. Qxc5 {[%emt 0:01:01]} Bc6 {[%emt 0:01:09]} 35. Qd4 {[%emt 0:05:12] Against Qd3} (35. cxd5 $16 Bxd5 36. Rf2) 35... dxc4 $14 {[%emt 0:00:07]} 36. g4 {[%emt 0:00:11]} ({Don't do} 36. bxc4 Bxf3 37. Rf2 Rf8 $16) (36. Qxc4 a4 $16) 36... Qd3 {[%emt 0:00:19]} ({Not} 36... Qc2+ 37. Rf2 Qd3 38. Qf4 $16 (38. bxc4 Qxd4 39. Bxd4 Rd8 $16)) 37. Qxd3 {[%emt 0:00:29]} cxd3 {[%emt 0:00:01]} 38. Kxh3 {[%emt 0:00:05][%mdl 4096] Endgame KRB-KRB} a4 {[%emt 0:00:02]} 39. Kg3 {[%emt 0:00:21]} axb3 {[%emt 0:00:02]} 40. axb3 {[%emt 0:00:02]} Ra3 {[%emt 0:00:07]} 41. b4 {[%emt 0:00:12]} Rb3 {[%emt 0:00:28]} 42. Bd2 {[%emt 0:00:16]} Rb2 {[%emt 0:00:13] [#]} 43. Rf2 {[%emt 0:00:04]} Rb1 {[%emt 0:00:32] [#]} 44. Kf4 {[%emt 0:00:40]} (44. f4 $1 $16) 44... Rh1 {[%emt 0:00:05]} 45. Kg5 {[%emt 0:00:51]} Kf7 {[%emt 0:00:34]} 46. f4 {[%emt 0:00:28]} Rg1 {[%emt 0:00:18]} 47. Kh4 {[%emt 0:00:51]} (47. f5 $1 $14) 47... Rh1+ $11 {[%emt 0:00:23]} 48. Kg5 {[%emt 0:00:04]} ({Better is} 48. Kg3 $11) 48... Rg1 $1 $14 {[%emt 0:00:02]} 49. f5 $1 {[%emt 0:00:17]} Rg2 {[%emt 0:00:11]} 50. Rxg2 {[%emt 0:00:35]} Bxg2 $16 {[%emt 0:00:02] KB-KB} 51. Kf4 {[%emt 0:00:13]} Bf1 {[%emt 0:06:15]} 52. Bc3 {[%emt 0:00:09]} Bg2 {[%emt 0:00:10]} 53. Ke3 {[%emt 0:00:12]} Bh3 {[%emt 0:00:11][%csl LRf5,LRg4]} 54. Kf4 {[%emt 0:00:01]} Bg2 {[%emt 0:00:19]} 55. Bd2 {[%emt 0:00:20]} (55. f6 $16) 55... Bh3 {[%emt 0:02:08]} (55... Bf1 $1 $11) 56. Kg3 {[%emt 0:00:05]} Bf1 {[%emt 0:00:05]} 57. Kf3 {[%emt 0:00:09]} (57. Bc3 $16) 57... Bh3 {[%emt 0:00:31]} (57... Be2+ $11 58. Kf4 Bf1) 58. Kg3 {[%emt 0:00:04]} Bf1 {[%emt 0:00:06]} 59. Bc3 {[%emt 0:00:01]} Be2 {[%emt 0:00:33]} 60. Kf4 {[%emt 0:00:03]} Bf1 {[%emt 0:17:20]} 61. fxe6+ {[%emt 0:00:00]} (61. Kg5 $16) 61... Kxe6 $14 {[%emt 0:00:00]} 62. g5 {[%emt 0:00:00]} Bh3 {[%emt 0:00:00]} 63. g6 {[%emt 0:00:52]} Bf5 {[%emt 0:00:00]} (63... Ke7 $14) 64. g7 {[%emt 0:00:15]} (64. Kg5 $16) 64... Bh7 $11 {[%emt 0:00:00]} 65. Kg5 {[%emt 0:00:03]} d2 {[%emt 0:00:00]} (65... Kf7 $11 {remains equal.}) 66. Bxd2 $16 {[%emt 0:00:06] White is clearly better.} Kxe5 {[%emt 0:00:00]} 67. Kh6 {[%emt 0:00:12]} Bg8 {[%emt 0:00:00]} 68. Kg6 {[%emt 0:00:10]} b5 {[%emt 0:00:00]} 69. Bc3+ {[%emt 0:00:17]} Ke6 {[%emt 0:00:00]} 70. Bb2 {[%emt 0:00:09]} Ke7 {[%emt 0:00:00]} 71. Bd4 {[%emt 0:00:13]} Ke6 {[%emt 0:00:00]} 72. Bc5 {[%emt 0:00:11]} Ke5 {[%emt 0:00:00]} 73. Bf2 {[%emt 0:00:08]} Ke6 {[%emt 0:00:00]} 74. Bh4 {[%emt 0:00:08]} Ke5 {[%emt 0:00:00] White really could win this.  Weighted Error Value: White=0.16 (very precise) /Black=0.15 (very precise)} 1/2-1/2

[Event "FIDE WTC Prel-B 2022"]
[Site "Jerusalem"]
[Date "2022.11.21"]
[Round "4.14"]
[White "Onischuk, Alexander"]
[Black "Nabaty, Tamir"]
[Result "0-1"]
[ECO "D27"]
[WhiteElo "2640"]
[BlackElo "2629"]
[Annotator "TA"]
[PlyCount "115"]
[EventDate "2022.11.20"]
[EventType "team-tourn"]
[EventCountry "ISR"]
[SourceTitle "playchess.com"]
[Source "ChessBase"]
[SourceQuality "1"]
[WhiteTeam "United States"]
[BlackTeam "Israel"]
[WhiteTeamCountry "USA"]
[BlackTeamCountry "ISR"]
[TimeControl "2700+10"]

{[%evp 17,115,17,14,13,6,14,12,18,5,-21,-24,-15,-8,-5,-8,0,0,-6,-6,0,0,-19,-4,-18,-25,-6,-9,-24,-22,-27,-22,-30,-26,-30,-22,-33,0,-21,-22,-22,-10,-14,-1,-8,0,-32,-42,-29,-28,-111,-22,-34,-29,-29,-29,-69,-58,-68,-68,-66,-72,-100,-98,-103,-92,-226,-191,-291,-297,-448,-429,-505,-451,-867,-867,-629,-595,-468,-455,-29969,-29965,-29970,-29971,-29971,-29972,-29973,-29973,-29973,-29974,-29974,-29975,-29975,-29976,-29976,-29977,-29979,-29980,-29979,-29980,-29980]} 1. d4 {[%emt 0:00:05]} d5 {[%emt 0:00:01]} 2. c4 {[%emt 0:00:02]} e6 {[%emt 0:00:02]} 3. Nc3 {[%emt 0:00:04]} c5 {[%emt 0:00:01]} 4. e3 {[%emt 0:00:14]} dxc4 {[%emt 0:00:19]} 5. Bxc4 {[%emt 0:00:11]} Nf6 {[%emt 0:00:17]} 6. Nf3 {[%emt 0:00:14]} a6 {[%emt 0:00:03]} 7. a4 {[%emt 0:00:25]} Nc6 {[%emt 0:00:10]} 8. O-O {[%emt 0:00:14]} Bd6 {[%emt 0:00:23]} 9. dxc5 {[%emt 0:02:19]} Bxc5 {[%emt 0:00:02]} 10. Qxd8+ {[%emt 0:00:14] D27: Queen's Gambit Accepted: Classical main line: 7 e4!? and 7 a4.} Kxd8 {[%emt 0:00:05]} 11. e4 {[%emt 0:00:44][%cal Be3e4,Be4e5][%mdl 32] was the old line (11.Bd2).} h6 {[%emt 0:00:34]} 12. e5 {[%emt 0:04:07] The position is equal.} Nd7 {[%emt 0:00:06]} 13. Re1 {[%emt 0:01:35] [#]} (13. Rd1 {is interesting.} Ke7 14. Ne4 Bb4 15. Bf4) 13... Ke7 $146 {[%emt 0:02:29]} ({Predecessor:} 13... g5 14. h3 Nd4 15. Rd1 Nxf3+ 16. gxf3 Ke7 17. f4 Rg8 18. Kf1 b6 19. Ne4 Bb7 {0-1 (27) Turovets,S (1946)-Fitiak,S (2207) Tomsk 2012}) 14. Bf4 {[%emt 0:01:25]} Nb6 {[%emt 0:05:57]} (14... Rd8 {keeps more tension.} 15. Ne4 Bb4 16. Rec1 Nb6) 15. Bf1 {[%emt 0:02:18]} Rd8 {[%emt 0:00:43]} 16. Rec1 {[%emt 0:03:26]} Na5 {[%emt 0:03:42]} 17. Ne4 {[%emt 0:04:09]} Bb4 {[%emt 0:01:21]} 18. Bd2 {[%emt 0:07:30]} (18. Rab1 {feels hotter.} Bd7 19. b3 Bc6 20. Bd2) 18... Bxd2 {[%emt 0:03:51]} 19. Nexd2 {[%emt 0:00:17]} Nd5 {[%emt 0:03:17]} 20. Rab1 {[%emt 0:01:14]} Nc6 {[%emt 0:03:19] Prevents b4.} 21. Ne4 {[%emt 0:01:53]} Bd7 {[%emt 0:01:01]} 22. Nc5 {[%emt 0:02:08]} Rab8 {[%emt 0:00:13]} 23. Nxd7 {[%emt 0:01:20]} Kxd7 {[%emt 0:00:08]} 24. Bd3 {[%emt 0:01:10]} g5 {[%emt 0:02:12]} 25. h3 {[%emt 0:00:39]} Nf4 {[%emt 0:00:28] Pair of Knights!} 26. Bf1 {[%emt 0:00:17]} Nd5 {[%emt 0:04:35]} 27. Bd3 {[%emt 0:00:42]} Rbc8 {[%emt 0:01:57]} 28. Be4 {[%emt 0:00:32]} Ke7 {[%emt 0:00:49]} 29. g3 {[%emt 0:01:01]} Ndb4 {[%emt 0:01:42]} 30. Rc4 {[%emt 0:01:03]} Rd7 {[%emt 0:03:49]} 31. Bxc6 {[%emt 0:03:44]} Nxc6 {[%emt 0:00:02]} 32. b4 {[%emt 0:00:10]} Na7 {[%emt 0:01:33] Inhibits b5.} 33. Rbc1 {[%emt 0:00:38] [#]} (33. Rxc8 $11 {remains equal.} Nxc8 34. Kg2) 33... Kd8 {[%emt 0:00:23]} ({Black should play} 33... Rd1+ $1 $17 {[%mdl 512]} 34. Rxd1 Rxc4) 34. Kg2 $11 {[%emt 0:00:30]} Rd5 {[%emt 0:00:16]} 35. Rxc8+ $1 {[%emt 0:02:36]} Nxc8 {[%emt 0:00:01][%cal Ba7c8,Bc8e7,Be7c6][%mdl 4128] Endgame KRN-KRN} 36. Rc3 {[%emt 0:00:30]} Ne7 {[%emt 0:01:04]} 37. Rc4 {[%emt 0:00:15]} Nc6 {[%emt 0:00:40]} 38. Re4 {[%emt 0:00:26]} Ke7 {[%emt 0:00:34]} 39. Rc4 {[%emt 0:00:50]} Kd7 {[%emt 0:00:23]} 40. Re4 {[%emt 0:00:08]} b5 {[%emt 0:00:04]} 41. axb5 {[%emt 0:00:13] White does not recover from this.} (41. a5 $17) 41... Rxb5 $19 {[%emt 0:00:20]} 42. h4 {[%emt 0:00:05]} (42. Nh2 $142) 42... Rxb4 {[%emt 0:00:40]} 43. Rxb4 {[%emt 0:00:03]} (43. Re2 $142 g4 44. Ne1) 43... Nxb4 {[%emt 0:00:01]} 44. hxg5 {[%emt 0:00:01]} hxg5 {[%emt 0:00:02] Strongly threatening ...a5.} 45. Nxg5 {[%emt 0:00:01] KN-KN} (45. Kf1 $142 a5 46. Ke2 (46. Nxg5 $2 {is the wrong capture.} a4 $19)) 45... a5 {[%emt 0:00:29] Hoping for ...a4.} 46. Ne4 {[%emt 0:00:39]} Kc6 {[%emt 0:00:44] White must now prevent ...a4.} 47. Kf3 {[%emt 0:00:18]} a4 {[%emt 0:00:19] Threatens to win with ...a3.} 48. Nc3 {[%emt 0:00:16] [#]} (48. Nd2 $19 Kd5 49. Nb1 Kxe5 50. Ke2) 48... a3 {[%emt 0:00:02] Black mates.} 49. Ke4 {[%emt 0:00:03]} a2 {[%emt 0:00:21]} 50. Nxa2 {[%emt 0:00:02]} Nxa2 {[%emt 0:00:01] KN-K3P} 51. f4 {[%emt 0:00:22]} Nc3+ {[%emt 0:00:10]} 52. Kd3 {[%emt 0:00:04]} Nd5 {[%emt 0:00:10]} 53. Kd4 {[%emt 0:00:18]} Ne7 {[%emt 0:00:25]} 54. g4 {[%emt 0:00:06]} Kb5 {[%emt 0:00:10]} 55. Ke4 {[%emt 0:00:17]} Kc5 {[%emt 0:00:06]} 56. f5 {[%emt 0:00:11]} Kc4 {[%emt 0:00:10]} 57. Ke3 {[%emt 0:00:11]} Kd5 {[%emt 0:00:20]} 58. Kf4 {[%emt 0:00:02] Weighted Error Value: White=0.29 (precise) /Black=0.05 (flawless)} 0-1

[Event "FIDE WTC Prel-B 2022"]
[Site "Jerusalem"]
[Date "2022.11.21"]
[Round "4.15"]
[White "Smirin, Ilia"]
[Black "Akobian, Varuzhan"]
[Result "1/2-1/2"]
[ECO "B11"]
[WhiteElo "2596"]
[BlackElo "2591"]
[Annotator "TA"]
[PlyCount "36"]
[EventDate "2022.11.20"]
[EventType "team-tourn"]
[EventCountry "ISR"]
[SourceTitle "playchess.com"]
[Source "ChessBase"]
[SourceQuality "1"]
[WhiteTeam "Israel"]
[BlackTeam "United States"]
[WhiteTeamCountry "ISR"]
[BlackTeamCountry "USA"]
[TimeControl "2700+10"]

{[%evp 13,36,14,21,22,21,20,22,24,35,6,33,12,9,0,0,0,8,0,0,0,0,0,0,0,0]} 1. e4 {[%emt 0:00:33]} c6 {[%emt 0:00:04]} 2. Nc3 {[%emt 0:00:48]} d5 {[%emt 0:00:04]} 3. Nf3 {[%emt 0:00:01]} Bg4 {[%emt 0:02:30]} 4. h3 {[%emt 0:00:07]} Bxf3 {[%emt 0:00:03]} 5. Qxf3 {[%emt 0:00:03]} e6 {[%emt 0:00:01]} 6. Be2 {[%emt 0:01:24]} Nf6 {[%emt 0:02:29]} 7. O-O {[%emt 0:00:24]} Nbd7 {[%emt 0:00:33]} 8. d4 {[%emt 0:01:45] B11: Caro-Kann: Two Knights Variation.} dxe4 {[%emt 0:00:36]} 9. Nxe4 {[%emt 0:00:04]} Nxe4 {[%emt 0:00:02]} 10. Qxe4 {[%emt 0:00:03]} Nf6 {[%emt 0:00:02]} 11. Qh4 {[%emt 0:02:10]} Qc7 {[%emt 0:03:51] [#]} 12. Bg5 $146 {[%emt 0:03:35]} ({Predecessor:} 12. Bf4 Bd6 13. Bxd6 Qxd6 14. Rad1 Qb4 15. Qg5 O-O 16. Qc1 Rad8 17. Rd3 Rd7 18. a3 {½-½ (39) Seret,J (2384)-Krzesaj,R (2323) Montpellier 2007}) 12... Be7 {[%emt 0:00:15] The position is equal.} 13. Rad1 {[%emt 0:03:12]} h6 {[%emt 0:03:36]} 14. Bc1 {[%emt 0:00:53]} Bd6 {[%emt 0:02:45]} 15. Bg5 {[%emt 0:03:34]} Nh7 {[%emt 0:02:44]} 16. Bc1 {[%emt 0:00:57]} Nf6 {[%emt 0:00:02] Prevents Qe4.} 17. Bg5 {[%emt 0:00:26]} Nh7 {[%emt 0:00:35]} 18. Bc1 {[%emt 0:00:13]} Nf6 {[%emt 0:00:06] Inhibits Qe4. A rather calm draw.  Weighted Error Value: White=0.07 (flawless) /Black=0.03 (flawless)} 1/2-1/2

[Event "FIDE WTC Prel-B 2022"]
[Site "Jerusalem"]
[Date "2022.11.21"]
[Round "4.16"]
[White "Quesada Perez, Yuniesky"]
[Black "Postny, Evgeny"]
[Result "1/2-1/2"]
[ECO "C55"]
[WhiteElo "2583"]
[BlackElo "2588"]
[Annotator "TA"]
[PlyCount "173"]
[EventDate "2022.11.20"]
[EventType "team-tourn"]
[EventCountry "ISR"]
[SourceTitle "playchess.com"]
[Source "ChessBase"]
[SourceQuality "1"]
[WhiteTeam "United States"]
[BlackTeam "Israel"]
[WhiteTeamCountry "USA"]
[BlackTeamCountry "ISR"]
[TimeControl "2700+10"]

{[%evp 10,173,30,26,25,34,34,25,24,24,38,14,26,17,20,0,14,7,21,21,27,19,27,28,16,10,24,22,29,22,25,12,80,79,80,82,79,69,143,88,108,96,125,68,106,27,10,11,104,82,100,57,109,105,115,87,141,0,0,0,0,0,0,0,42,0,0,0,74,74,74,74,74,74,74,74,74,8,8,8,206,206,206,206,206,206,206,206,206,206,206,8,206,206,206,206,206,125,206,206,206,206,206,206,206,184,206,206,206,206,206,206,206,206,206,206,206,206,206,206,206,206,206,206,206,206,206,206,206,206,206,206,206,175,206,0,198,198,198,198,198,198,206,198,206,8,206,8,8,8,8,8,8,8,8,8,8,8,8,8,8,8,8,8,8,8]} 1. e4 {[%emt 0:00:03]} e5 {[%emt 0:00:08]} 2. Nf3 {[%emt 0:00:03]} Nc6 {[%emt 0:00:02]} 3. Bc4 {[%emt 0:00:10]} Nf6 {[%emt 0:00:05]} 4. d3 {[%emt 0:00:02]} Be7 {[%emt 0:00:06]} 5. O-O {[%emt 0:00:04]} d6 {[%emt 0:00:03]} 6. a4 {[%emt 0:00:08]} Na5 {[%emt 0:00:20] C55: Two Knights: 4 d3, 4 d4 exd4 5 e5 and Max Lange Attack.} 7. Ba2 {[%emt 0:00:07]} c5 {[%emt 0:00:03] Against b4} 8. c3 {[%emt 0:01:29]} Nc6 {[%emt 0:00:07] White has an edge.} 9. Na3 {[%emt 0:00:29]} O-O {[%emt 0:00:07] [#]} 10. Nc2 $146 {[%emt 0:01:28]} ({Predecessor:} 10. Nc4 Be6 11. Ne3 Bxa2 12. Rxa2 d5 13. exd5 Nxd5 14. Nc4 Bf6 15. Ra1 Qd7 16. Qe2 {0-1 (30) Getz,N (2434)-Postny,E (2616) Novi Sad 2016}) 10... a6 {[%emt 0:01:18]} 11. b4 {[%emt 0:01:32]} cxb4 {[%emt 0:00:46]} 12. cxb4 {[%emt 0:01:10]} d5 {[%emt 0:02:58]} 13. b5 {[%emt 0:02:16]} (13. Bb2 {feels hotter.} Bg4 14. b5 axb5 15. axb5 Qb6 16. bxc6 Qxb2 17. Qb1) 13... axb5 {[%emt 0:08:29]} 14. axb5 {[%emt 0:00:04]} Nb4 {[%emt 0:00:04]} 15. Nxb4 {[%emt 0:02:05]} Bxb4 {[%emt 0:00:02]} 16. Bb2 {[%emt 0:01:49] Against Bc3} Bg4 {[%emt 0:05:25]} 17. h3 {[%emt 0:09:00]} Bxf3 {[%emt 0:02:04]} 18. Qxf3 {[%emt 0:01:48]} d4 {[%emt 0:00:10]} 19. Bc4 {[%emt 0:02:19]} Rxa1 {[%emt 0:01:38]} 20. Rxa1 {[%emt 0:01:52]} Bc3 {[%emt 0:00:03]} (20... Qe7 $11) 21. Bxc3 $16 {[%emt 0:05:13] White is more active.} dxc3 {[%emt 0:00:02]} 22. Qd1 $1 {[%emt 0:00:01]} Qd4 {[%emt 0:05:50][%cal Oc3c2]} 23. Qb3 {[%emt 0:00:02] Prevents c2.} Ne8 {[%emt 0:02:51] [#]} (23... g6 $14) 24. Rc1 {[%emt 0:04:23]} (24. Ra4 $142 $1 {[%cal Oc4f7] Hoping for Bxf7+!} Qc5 25. Qxc3) 24... Nd6 {[%emt 0:00:04]} 25. Rxc3 {[%emt 0:01:19]} Ra8 {[%emt 0:00:55]} 26. Rc1 {[%emt 0:00:15]} (26. g3 $16) 26... Ra1 {[%emt 0:06:43]} 27. Rxa1 {[%emt 0:00:22]} (27. Qd1 $16 Ra3 28. Qg4) 27... Qxa1+ {[%emt 0:00:01][%mdl 4096] Endgame KQB-KQN} 28. Kh2 {[%emt 0:00:02]} Qd4 {[%emt 0:00:35]} (28... Qc1 $11) 29. Qa2 {[%emt 0:00:29]} g6 {[%emt 0:00:13]} 30. g3 {[%emt 0:00:30]} Kg7 {[%emt 0:03:22]} (30... Nxc4 $14 31. dxc4 b6) 31. Kg2 {[%emt 0:00:10]} h5 {[%emt 0:00:12]} 32. h4 {[%emt 0:00:32]} Kf6 {[%emt 0:01:03]} (32... b6 $142) 33. f4 {[%emt 0:03:04]} (33. Bd5 $16 {Black must now prevent Qa5.} Qxd3 34. Qa5) 33... Kg7 $11 {[%emt 0:00:57]} 34. Qf2 {[%emt 0:01:23] Strongly threatening Qxd4.} Qc3 {[%emt 0:00:11]} 35. Bd5 {[%emt 0:01:55]} Qxd3 {[%emt 0:02:05]} 36. fxe5 {[%emt 0:00:09]} Nf5 {[%emt 0:00:02][%mdl 64]} 37. Kh3 {[%emt 0:00:29]} (37. Bxb7 Ne3+ 38. Kh3 {[#]} Qd1 $1 $19) (37. Qf3 {simplifies} Qxf3+ 38. Kxf3 Nd4+ 39. Ke3) 37... Qxb5 {[%emt 0:00:32]} 38. Ba2 {[%emt 0:00:47]} Qc6 {[%emt 0:01:05]} 39. exf5 $16 {[%emt 0:00:30]} Qh1+ {[%emt 0:00:02]} 40. Qh2 {[%emt 0:00:02]} Qf1+ {[%emt 0:00:01]} 41. Qg2 {[%emt 0:00:00]} Qxf5+ {[%emt 0:00:02]} 42. Kh2 {[%emt 0:00:03]} Qxe5 {[%emt 0:00:02]} 43. Qxb7 {[%emt 0:01:16]} (43. Qf2 $16 Qf6 44. Qxf6+ Kxf6 45. Bc4) 43... Qe2+ $11 {[%emt 0:00:04]} 44. Qg2 {[%emt 0:00:02]} Qe3 {[%emt 0:01:00]} (44... Qxg2+ $11 45. Kxg2 f6) 45. Qc2 {[%emt 0:00:13]} Qe5 {[%emt 0:00:13]} 46. Qf2 {[%emt 0:00:10]} Qe7 {[%emt 0:00:03]} 47. Bd5 {[%emt 0:00:09]} Kg8 {[%emt 0:00:13]} 48. Kg2 {[%emt 0:00:06]} Kg7 {[%emt 0:00:02]} 49. Qf3 {[%emt 0:00:17]} Kg8 {[%emt 0:00:14]} 50. Qe4 $2 {[%emt 0:00:09]} (50. Kh2 $18) 50... Qf6 $2 {[%emt 0:00:03]} (50... Qxe4+ $11 {and Black is okay.} 51. Bxe4 Kf8) 51. Qf4 {[%emt 0:00:34]} Qe7 {[%emt 0:00:13]} 52. Qd4 {[%emt 0:00:45]} Qe2+ {[%emt 0:00:09]} 53. Qf2 {[%emt 0:00:10]} Qe7 {[%emt 0:00:02]} (53... Qxf2+ $16 54. Kxf2 Kg7) 54. Qf3 {[%emt 0:00:19]} Kg7 {[%emt 0:00:06]} 55. Qc3+ {[%emt 0:00:05]} Kg8 {[%emt 0:00:04]} 56. Kf3 {[%emt 0:00:07]} Qd6 {[%emt 0:00:38]} 57. Ke4 {[%emt 0:00:26]} Qe7+ {[%emt 0:00:29]} 58. Qe5 {[%emt 0:00:04]} Qd7 {[%emt 0:00:13]} 59. Ke3 {[%emt 0:00:14]} Kh7 {[%emt 0:00:05]} 60. Bc4 {[%emt 0:00:10]} Qa7+ {[%emt 0:00:08]} 61. Kf3 {[%emt 0:00:11] White wants to mate with Qf6.} Kg8 {[%emt 0:00:16]} 62. Qf6 {[%emt 0:00:12]} Qb7+ {[%emt 0:00:12]} 63. Kf2 {[%emt 0:00:08]} Kf8 {[%emt 0:00:07]} 64. Qh8+ {[%emt 0:00:07]} Ke7 {[%emt 0:00:01]} 65. Qd4 {[%emt 0:00:09]} Kf8 {[%emt 0:00:07]} 66. Bd5 {[%emt 0:00:03]} Qd7 {[%emt 0:00:09]} 67. Qe5 {[%emt 0:00:11]} Kg8 {[%emt 0:00:07]} 68. Kf3 {[%emt 0:00:08]} Kh7 {[%emt 0:00:09]} 69. Ke3 {[%emt 0:00:22]} Kg8 {[%emt 0:00:09]} 70. Bc4 {[%emt 0:00:06]} Qa7+ {[%emt 0:00:10]} 71. Ke4 {[%emt 0:00:13]} Qd7 {[%emt 0:00:19]} 72. Ke3 $2 {[%emt 0:00:13]} ({Better is} 72. Qb8+ $18 Kg7 73. Ke3) 72... Kf8 $2 {[%emt 0:00:21]} (72... Qa7+ $1 $11 73. Kf3 Qd7) 73. Qh8+ $18 {[%emt 0:00:10]} Ke7 {[%emt 0:00:01]} 74. Qg7 {[%emt 0:00:02]} Qf5 {[%emt 0:00:08]} 75. Qd4 {[%emt 0:00:08] Prevents Qc5. Qf4 is the strong threat.} Kf8 {[%emt 0:00:04]} 76. Qd8+ {[%emt 0:00:09]} Kg7 {[%emt 0:00:02]} 77. Qd5 $2 {[%emt 0:00:02] Prevents Qe5+.} (77. Qc7 $18) 77... Qf6 $2 {[%emt 0:00:23]} (77... Qxd5 $11 {and Black has nothing to worry.} 78. Bxd5 f6) 78. Qd4 $2 {[%emt 0:00:01]} ({White should try} 78. Ke2 $18) 78... Qxd4+ $11 {[%emt 0:00:02] The position is equal.} 79. Kxd4 {[%emt 0:00:01]} g5 {[%emt 0:00:19]} 80. hxg5 {[%emt 0:00:13] White threatens Ke5 and mate.} Kg6 {[%emt 0:00:01]} 81. Bxf7+ {[%emt 0:00:44]} Kxg5 $1 {[%emt 0:00:01] KB-KP} 82. Be6 {[%emt 0:00:11] Threatening mate with Bh3.} h4 {[%emt 0:00:01]} 83. g4 {[%emt 0:00:10] Intending Ke4 and mate.} h3 {[%emt 0:00:02]} 84. Ke3 {[%emt 0:00:02] Kf2 would kill now.} h2 {[%emt 0:00:01]} 85. Bd5 {[%emt 0:00:02]} Kxg4 {[%emt 0:00:01]} 86. Kf2 {[%emt 0:00:01]} h1=N+ {[%emt 0:00:02]} 87. Bxh1 {[%emt 0:00:02] White really could win this.   Weighted Error Value: White=0.23 (precise) /Black=0.24 (precise)} 1/2-1/2